Cogmind - Beta 17 @@@ ROGUE MODE // 2026.06.25 @ 02:29:03 Player: Dull Result: Destroyed by CM-V9T(R) with Subdweller Beam Cannon Performance ------------- Evolutions (0) 0 Regions Visited (2) 400 Robots Destroyed (21) 105 Value Destroyed (724) 724 Prototype IDs (0) 0 Alien Tech Used (0) 0 Bonus (0) 0 TOTAL SCORE: 1229 Bonus ------- None Cogmind --------- Core Integrity 0/250 Matter 245/300 Energy 249/250 System Corruption 0% Temperature Cool (9) Movement Rolling (120) Ox1 Location -10/Subcaves Parts ------- > --- POWER (1) -------- Ion Engine > --- PROPULSION (2) --- Subdweller Monowheel > --- UTILITY (2) ------ Large Storage Unit > --- WEAPON (2) ------- Subdweller Machine Gun Grenade Launcher > --- INVENTORY (15) --- Ion Engine Flightbrick Assault Rifle Assault Rifle Assault Rifle Assault Rifle Light Assault Rifle Heavy Assault Rifle Heavy Assault Rifle Battle Rifle Subdweller Machine Gun Mining Laser Peak State ------------ > --- POWER ------------ Ion Engine > --- PROPULSION ------- Subdweller Monowheel > --- UTILITY ---------- Large Storage Unit > --- WEAPON ----------- Heavy Assault Rifle Subdweller Machine Gun > --- INVENTORY -------- Ion Engine Flightbrick Assault Rifle Assault Rifle Assault Rifle Assault Rifle Light Assault Rifle Heavy Assault Rifle Battle Rifle Subdweller Machine Gun Grenade Launcher Mining Laser [Rating: 13] Favorites ----------- Power Ion Engine Engine Ion Engine Propulsion Light Treads Treads Light Treads Leg Aluminum Leg Wheel Wheel Utility Large Storage Unit Device Improved Heat Sink Storage Large Storage Unit Protection Light Armor Plating Weapon Light Assault Rifle Energy Gun Small Laser Ballistic Gun Light Assault Rifle Launcher Grenade Launcher Special Weapon Mining Laser Build | -11 -10 -10 ------- Run | Yrd Mat Sub Slots Evolved . | . . . Power . | . . . Propulsion . | . . . Utility . | . . . Weapon . | . . . Parts Attached 24 | . 12 12 Power 4 | . 2 2 Engine 4 | . 2 2 Core . | . . . Reactor . | . . . Propulsion 6 | . 4 2 Treads 3 | . 2 1 Leg . | . . . Wheel 3 | . 2 1 Hover . | . . . Flight . | . . . Utility 4 | . 4 . Device 1 | . 1 . Storage 2 | . 2 . Processor . | . . . Hackware . | . . . Protection 1 | . 1 . Artifact . | . . . Weapon 10 | . 2 8 Energy Gun . | . . . Energy Cannon . | . . . Ballistic Gun 8 | . 2 6 Ballistic Cannon . | . . . Launcher 1 | . . 1 Special Weapon 1 | . . 1 Impact Weapon . | . . . Slashing Weapon . | . . . Piercing Weapon . | . . . Special Melee Weapon . | . . . Unidentified Prototypes . | . . . Parts Lost 7 | . 1 6 Power 1 | . 1 . Propulsion 3 | . . 3 Utility 1 | . . 1 Weapon 2 | . . 2 Highest Loss Streak 3 | . 1 3 To Critical Strikes 1 | . . 1 Average Backups 10 | . 9 12 Power 1 | . 1 1 Propulsion 1 | . 1 . Utility . | . . . Weapon 7 | . 6 9 Tool/Special . | . . . Unused Backups 18 | . 10 8 Power 3 | . 2 1 Propulsion 3 | . 2 1 Utility 3 | . 3 . Weapon 9 | . 3 6 Tool/Special . | . . . Average Slot Usage (%) 90 | . 99 79 Engine 13 | . 13 14 Treads 13 | . 13 12 Wheel 9 | . 12 6 Device 2 | . 4 . Storage 14 | . 14 14 Protection 5 | . 8 3 Ballistic Gun 27 | . 27 27 Peak Build Rating 13 | . 10 13 Average Rating 8 | . 8 9 On Entrance 6 | 6 6 8 Avg Prop Armor Cover (%) . | . . . Naked Turns . | . . . Heaviest Build 32 | 10 31 32 Greatest Support 40 | 20 40 40 Greatest Overweight (x) 10 | . . 10 Average Overweight (x) . | . . . Largest Inventory Capacity 15 | . 15 15 Average Capacity 12 | . 10 15 Most Carried 15 | . 14 15 Average Carried 11 | . 9 12 Final Capacity 15 | 8 15 15 Final Carried 15 | 6 14 15 Class Distribution -------------------- 100% | Mutant Dominant Class ---------------- Mutant | -10/Materials Mutant | -10/Subcaves Resources | -11 -10 -10 ----------- Run | Yrd Mat Sub Matter Collected 811 | 200 283 328 Remotely . | . . . Salvage Created 865 | . 477 388 Parts 42 | . 22 20 Haulers Intercepted 2 | . 2 . Recyclers Shooed . | . . . Parts Field Recycled . | . . . Retrieved Matter . | . . . Parts Self-Destructed 6 | . . 6 Prevented . | . . . Parts Restored . | . . . Kills | -11 -10 -10 ------- Run | Yrd Mat Sub Combat Hostiles Destroyed 19 | . 9 10 Guns 18 | . 9 9 AOE 1 | . . 1 Classes Destroyed 3 | . 2 1 Hauler 2 | . 2 . Grunt 11 | . 9 2 Subdweller 8 | . . 8 Best Kill Streak 2 | . 2 2 Combat Bots Only 2 | . 2 2 Max Kills in Single Turn 2 | . 1 2 Gunslinging 1 | . . 1 Exploded 1 | . . 1 Melee . | . . . Uniques/NPCs Destroyed . | . . . Combat | -11 -10 -10 -------- Run | Yrd Mat Sub Hostile Shots Fired 102 | . 29 73 Missed 28 | . 6 22 Hits 74 | . 23 51 Projectile 74 | . 23 51 Critical Strikes 2 | . . 2 Damage Taken 1493 | . 262 1231 Core 265 | . 35 230 Absorbed by Shields . | . . . Core Remaining (%) 100 | 100 . . Volleys Fired 105 | . 44 61 Largest 2 | . 2 2 Hottest 123 | . 40 123 Shots Fired 201 | . 88 113 Gun 191 | . 88 103 Cannon . | . . . Launcher 1 | . . 1 Special 9 | . . 9 Kinetic 191 | . 88 103 Thermal 9 | . . 9 Explosive 1 | . . 1 Electromagnetic . | . . . Robot Hit Streak 11 | . 7 11 Robot Miss Streak 3 | . 3 2 Penetration Max . | . . . Secondary Targets 4 | . 1 3 Max Gunslinging Chain 1 | . 1 1 Shots Hit Robots 120 | . 57 63 Core Hits 40 | . 20 20 Critical Kills . | . . . Critical Parts Destroyed . | . . . Critical Strikes 1 | . . 1 Destroy 1 | . . 1 Melee Attacks . | . . . Impact . | . . . Slashing . | . . . Piercing . | . . . Sneak Attacks . | . . . Combat Hostiles . | . . . Follow-up Attacks . | . . . Damage Inflicted 1619 | . 618 1001 Guns 1531 | . 618 913 Cannons . | . . . Explosions 88 | . . 88 Melee . | . . . Ramming . | . . . Kinetic 1531 | . 618 913 Thermal . | . . . Explosive 88 | . . 88 Electromagnetic . | . . . Impact . | . . . Slashing . | . . . Piercing . | . . . Highest Corruption . | . . . Average Corruption . | . . . Corruption Purged . | . . . Corruption Blocked . | . . . Overload Shots . | . . . Overflow Damage . | . . . Projectiles . | . . . Explosions . | . . . Melee . | . . . Knockbacks . | . . . Impact . | . . . Kinetic . | . . . Secondary . | . . . Self-Inflicted Damage . | . . . Shots . | . . . Rammed . | . . . Targets Rammed . | . . . Kicked . | . . . Crushed . | . . . Highest Temperature 280 | . 13 280 Average Temperature 32 | . 5 165 Received Heat Transfer 704 | . 144 560 Siege Activations . | . . . Martial Activations . | . . . Shielding Activations . | . . . Robots Disrupted . | . . . Combat Hostiles . | . . . Robots Corrupted . | . . . Combat Hostiles . | . . . Parts Fried . | . . . Impact Corruptions . | . . . Robots Melted . | . . . Combat Hostiles . | . . . Parts Melted . | . . . Heat Transferred . | . . . Parts Sabotaged . | . . . Parts Stolen . | . . . Parts Stripped . | . . . Power Chain Reactions . | . . . Alert | -11 -10 -10 ------- Run | Yrd Mat Sub Maximum Alert Level . | . . . Low Security (%) 100 | . 100 . Level 1 . | . . . Level 2 . | . . . Level 3 . | . . . Level 4 . | . . . Level 5 . | . . . High Security . | . . . Max Security . | . . . Peak Influence 74 | . 74 . Initial . | . . . Average 17 | . 17 . Influence Increases 334 | . 284 50 Destroy 0b10 Robot/C 220 | . 180 40 Destroy 0b10 Robot/NC 10 | . 10 . Destroy Leader 64 | . 54 10 Successful Hack 24 | . 24 . Destroy Structure 1 | . 1 . Lose Combat Pursuer 15 | . 15 . Influence Decreases 334 | . 284 50 Time Decay 304 | . 274 30 Lost Part 30 | . 10 20 Squads Dispatched 6 | . 6 . Investigation 4 | . 4 . Extermination . | . . . Reinforcement 2 | . 2 . Assault . | . . . Garrison . | . . . Intercept . | . . . Searches Triggered . | . . . Construction Impeded . | . . . Haulers Reinforced . | . . . Active Scanning Responses . | . . . Cargo Convoy Interrupts . | . . . Stealth | -11 -10 -10 --------- Run | Yrd Mat Sub Distress Signals 2 | . 2 . Communications Jammed . | . . . Distress Signals . | . . . Times Spotted 34 | . 21 13 Peak Tracking Total 4 | . 4 2 Tactical Retreats 2 | . 1 1 Traps | -11 -10 -10 ------- Run | Yrd Mat Sub Traps Triggered 3 | . 1 2 Indirectly . | . . . Trap Hack Attempts . | . . . Triggered . | . . . Disarmed . | . . . Reprogrammed . | . . . Reused . | . . . Traps Extracted . | . . . Installed . | . . . Triggered . | . . . Machines | -11 -10 -10 ---------- Run | Yrd Mat Sub Machines Disabled 1 | . 1 . Max in Single Turn 1 | . 1 . Machines Repaired . | . . . Machines Dismantled . | . . . Machines Sabotaged . | . . . Overloaded Fab Kills . | . . . Hacking | -11 -10 -10 --------- Run | Yrd Mat Sub Machines Accessed 8 | . 8 . Terminals 6 | . 6 . Fabricators . | . . . Repair Stations 1 | . 1 . Recycling Units 1 | . 1 . Scanalyzers . | . . . Garrison Access . | . . . Total Hacks 19 | . 19 . Successful 12 | . 12 . Failed 7 | . 7 . Catastrophic . | . . . Database Lockouts . | . . . Manual 5 | . 5 . Terminals 13 | . 13 . Fabricators . | . . . Repair Stations 2 | . 2 . Recycling Units 4 | . 4 . Scanalyzers . | . . . Garrison Access . | . . . Terminal Hacks 6 | . 6 . Robot Analysis 1 | . 1 . Alert Level 1 | . 1 . Locate Traps 1 | . 1 . Reinforcement Status 1 | . 1 . Zone Layout 2 | . 2 . Fabricator Hacks . | . . . Repair Station Hacks 1 | . 1 . Scan Component 1 | . 1 . Recycling Unit Hacks 1 | . 1 . Retrieve Components 1 | . 1 . Scanalyzer . | . . . Garrison Access Hacks . | . . . Unauthorized Hacks 4 | . 4 . Terminals 4 | . 4 . Botnet 4 | . 4 . Fabricators . | . . . Repair Stations . | . . . Recycling Units . | . . . Scanalyzers . | . . . Garrison Access . | . . . Data Cores Recovered . | . . . Used . | . . . Hacking Detections 7 | . 7 . Full Trace Events 2 | . 2 . Feedback Events . | . . . Feedback Blocked . | . . . Robot Schematics Acquired . | . . . Robots Built . | . . . Authchips . | . . . Time . | . . . Total Robot Build Rating . | . . . Part Schematics Acquired . | . . . Parts Built . | . . . Authchips . | . . . Time . | . . . Total Part Build Rating . | . . . Part Studies Acquired . | . . . Parts Repaired . | . . . Time . | . . . Parts Recycled . | . . . Recycled Matter . | . . . Retrieved Matter . | . . . Retrieved Components 2 | . 2 . Parts Scanalyzed . | . . . Part Schematics Acquired . | . . . Parts Damaged . | . . . Bothacking | -11 -10 -10 ------------ Run | Yrd Mat Sub Used RIF Installer . | . . . Robots Hacked . | . . . Non-combat . | . . . Combat . | . . . Robot Hacks Applied . | . . . Relay Couplers Released . | . . . Fabnet Peak Effective % . | . . . Robots Rewired . | . . . Allies Hacked . | . . . Hacks Repelled . | . . . Allies | -11 -10 -10 -------- Run | Yrd Mat Sub Total Allies . | . . . Largest Group . | . . . Highest-Rated Group . | . . . Highest-Rated Ally . | . . . Total Orders . | . . . Ally Attacks . | . . . Total Damage . | . . . Kills . | . . . Allies Corrupted . | . . . Allies Melted . | . . . Intel | -11 -10 -10 ------- Run | Yrd Mat Sub Active Infowar (turns) . | . . . Robot Analysis Total 1 | . 1 . Derelict Logs Recovered 1 | . . 1 Drone Launches . | . . . Drone Recoveries . | . . . Exploration | -11 -10 -10 ------------- Run | Yrd Mat Sub Turns Passed 2185 | . 1216 969 Spaces Moved 1309 | 1 820 488 Core 10 | . . 10 Treads 531 | . 316 215 Legs 45 | 1 44 . Wheels 723 | . 460 263 Hover . | . . . Flight . | . . . Fastest Speed 90 | 120 90 120 Average Speed 129 | 120 118 146 Slowest Speed 550 | 120 160 550 Overloaded Moves . | . . . Propulsion Burnouts . | . . . Robots Hopped . | . . . Potential Cave-ins . | . . . Cave-ins Triggered . | . . . Exploration Rate (%) 45 | 1 98 36 Regions Visited 2 Branch Regions 1 Pre-discovered Areas . | . . . Known Exits Taken . | . . . Unknown Exits Taken 2 | 1 1 . Scrap Searched . | . . . Spaces Dug . | . . . Terrain Destroyed 3 | . . 3 Melee . | . . . Projectile . | . . . AOE 3 | . . 3 Terrain Rammed . | . . . Walls Destroyed . | . . . Machines Disabled . | . . . Actions | -11 -10 -10 --------- Run | Yrd Mat Sub Total 1600 | . 989 611 Wait 114 | . 77 37 Move 1307 | . 819 488 Hop . | . . . Pick Up 30 | . 23 7 Fast Attach . | . . . Attach 12 | . 5 7 Detach . | . . . Swap 13 | . 7 6 Drop 19 | . 14 5 Fire 105 | . 44 61 Melee . | . . . Ram . | . . . Kick . | . . . Crush . | . . . Escape Stasis . | . . . Rewire . | . . . Trap . | . . . Miscellaneous . | . . . Route ------- -11/Scrapyard -10/Materials (discovered 5 exits: [*Mat x3] / [*Min] / [*Sub]) -10/Subcaves (discovered 1 exit: [*Mat]) History --------- Turn | Location | Event 1 | -11/Scrapyard | Discovered new exit (range 0) 1 | -11/Scrapyard | Entered Materials 2 | -10/Materials | Met a group of wandering Federalists 108 | -10/Materials | Discovered new exit (range 10) 309 | -10/Materials | Build established: Mutant 483 | -10/Materials | Discovered new exit (range 13) 567 | -10/Materials | Discovered new exit (range 5) 814 | -10/Materials | Discovered new exit (range 16) 1049 | -10/Materials | Discovered new exit (range 10) 1217 | -10/Materials | Entered Subcaves 1234 | -10/Subcaves | Shifting Twisted Machinery released Flamer 1235 | -10/Subcaves | Learned Materials interactive machine intel 1259 | -10/Subcaves | Shifting Twisted Machinery released Shrapnel Trap 1397 | -10/Subcaves | Discovered new exit (range 5) 1497 | -10/Subcaves | Shifting Twisted Machinery released Piercing Trap 1498 | -10/Subcaves | A swath of the cavern ceiling suddenly collapsed 1629 | -10/Subcaves | Shifting Twisted Machinery released Sub. Laser 1694 | -10/Subcaves | Lost 3 parts (2n1w) 1754 | -10/Subcaves | Shifting Twisted Machinery released Battle Rifle 1939 | -10/Subcaves | Core integrity fell below 50% 2048 | -10/Subcaves | A Subdweller sparked back to life 2048 | -10/Subcaves | A Subdweller sparked back to life 2048 | -10/Subcaves | A Subdweller sparked back to life 2067 | -10/Subcaves | Found Prototype Flight Unit 2087 | -10/Subcaves | A swath of the cavern ceiling suddenly collapsed 2155 | -10/Subcaves | Core integrity fell below 20% 2181 | -10/Subcaves | Ambushed by Subdwellers from Twisted Machinery 2186 | -10/Subcaves | Destroyed by CM-V9T(R) with Subdweller Beam Cannon Last Messages --------------- 02058_ 5N-18E(R) affixes Scrap Shield Fragment to Scrap Shield. 02060_ 5N-18E(R) destroyed. 02060_ Switching to secondary target: 3J-OVS(R). 02060_ 3J-OVS(R) destroyed. 02066_ Dropped Broken Sub. Power Source. 02067_ Acquired Prototype Flight Unit. 02068_ Acquired 33 matter. 02072_ Acquired 46 matter. 02086_ Triggered Piercing Trap. 02086_ Spikes shoot up from the floor. 02086_ Critical hit (Impale). A swath of the cavern ceiling suddenly collapses. 02127_ Subatomizers dissect the Disposable Heat Sink. 02154_ Triggered Shrapnel Trap. 02154_ An expanding cloud of shrapnel blasts out in all directions. 02184_ 8D-41X(R) destroyed. Map ----- +----------------------------------------------------+ | ?????????????# """#"""#??????????????????? | | #???????????# " ##??????????????????? | | ????????????# ##?????????????????? | | ????????????# "" #?????????????????? | | ?????????????# #"" #?????????????????? | | ????????????# #### ###???????????????? | | ???????????# ##??# ##??????????????? | | ???????????# ###???## #??????????????? | | ??????????# #???????# ##??????????????? | | ??????????# ???????## #???????????????? | | ????????? ##???????# ##??????????????? | | ???????? #?????????## #??????????????? | | ???????# # ???????????## #??????????????? | | ???????####?????????????# ##??????????????? | | ????????????????????????## #???????????????? | | ?????????????? ?????????## ##??????????????? | | ??????????????# ????????# #??????????????? | | ??????????????# ???????# #??????????????? | | ?????????????## ###???## #??????????????? | | ?????????????# ###?# ##??????????????? | | ?????????????# ## ##???????????????? | | ??????????????????# #????????????????? | | ??????????????????## #????????????????? | | ??????????????????## ##????????????????? | | ??????????????????#" ##?????????????????? | | ??????????????????#" @ #??????????????????? | | ??????????????????#" #??????????????????? | | ??????????????????#" #??????????????????? | | ??????????????????#" #??????????????????? | | ??????????????????# ##??????????????????? | | ?????????????????# #???????????????????? | | ????????????????" ???????????????????? | | ???????????????""" ???????????????????? | | ??????????????? """ R # ???????????????????? | | ????????????????"""% # ???????????????????? | | ?????????????????""" ## ???????????????????? | | ????????????????? ?# ???????????????????? | | ??????????????????? ??# ???????????????????? | | ?????????????????? ??# ## ???????????????????? | | ??????????????????????##??#???????????????????? | | ??????????????????????????????????????????????? | | ??????????????????????????????????????????????? | | ??????????????????????????????????????????????? | | ??????????????????????????????????????????????? | | ??????????????????????????????????????????????? | | ??????????????????????????????????????????????? | | ??????????????????????????????????????????????? | | ??????????????????????????????????????????????? | | ??????????????????????????????????????????????? | | ??????????????????????????????????????????????? | +----------------------------------------------------+ Best States ------------- Heat Dissipation 39 Energy Generation 15 Energy Capacity 250 Matter Stores 300 Matter Capacity 300 Sight Range 16 Terrain Scan Density 10 Armor Coverage 150 Evasion (%) 55 Recoil Reduction 2 Item Schematics ----------------- None Robot Schematics ------------------ None Fabricated ------------ Nothing Repaired ---------- Nothing Studied --------- None Alien Tech Used ----------------- None Achievements -------------- None Challenges ------------ None Game ------ Seed WarpMultinovaInterpreter Manual? 0 Play Time 00:20:36 Cumulative 148.9 hours Start 2026.06.25 @ 02:11:10 End 2026.06.25 @ 02:29:03 Sessions 1 Manual Loads 0 Difficulty Rogue Special Mode None Game No. 200 Rogue 200 Adventurer 0 Explorer 0 Win Type - Total 1 Types 1/0/0/0/0/0/0/0/0/0 Lore% 48 Gallery% 52 Achievement% 27 Wizard Run 0 Options --------- Layout 1 ASCII 0 Keyboard 0 Movement Mouse Keybinds 1 Fullscreen 1 Font 24/Smallcaps Map View 50x35 Zoom Use 0% Tactical HUD 1 Map Filters NONE Filters NONE Steam 1 RUN: a40d9772-1c0c-42cc-8b56-8e1d5b6bde9c